fUSD/lending_fUSD_20251118
["ID","MTS","AMOUNT","RATE_DAILY","PERIOD"]
[394371277,1763502642251,-6631.31243,0.0004098,7]
[394371278,1763502642265,-1000.0,0.00040981,7]
[394371279,1763502642274,-152.00305552,0.00040992,20]
[394371280,1763502642284,-4801.61571297,0.00041,7]
[394371281,1763502642294,-86305.95743462,0.00041,30]
[394371282,1763502642303,-164.0,0.00041,2]
[394371283,1763502642312,-7635.01645803,0.00041,7]
[394371284,1763502642322,-1000.0,0.00041003,7]
[394371285,1763502642331,-1000.0,0.00041012,7]
[394371286,1763502642340,-1000.0,0.00041038,7]
[394371287,1763502642349,-212.36800079,0.00041041,30]
[394371288,1763502642358,-212.36800079,0.00041041,30]
[394371289,1763502642367,-25000.0,0.0004105,14]
[394371290,1763502642376,-150.42,0.00041058,2]
[394371291,1763502642386,-151.0,0.00041059,30]
[394371292,1763502642395,-25000.0,0.00041059,14]
[394371293,1763502642405,-25000.0,0.00041068,14]
[394371294,1763502642415,-25000.0,0.00041068,14]
[394371295,1763502642424,-25000.0,0.00041076,14]
[394371296,1763502642433,-1000.0,0.00041077,7]
[394371297,1763502642442,-927.0,0.00041079,30]
[394371298,1763502642451,-25000.0,0.00041085,14]
[394371299,1763502642460,-25000.0,0.00041094,14]
[394371300,1763502642471,-255.29141303,0.00041095,15]
[394371301,1763502642480,-500.0,0.00041095,2]
[394371302,1763502642489,-500.0,0.00041095,2]
[394371303,1763502642499,-500.0,0.00041095,2]
[394371304,1763502642508,-2391.68,0.00041095,2]
[394371305,1763502642517,-500.0,0.00041095,2]
[394371307,1763502642526,-500.0,0.00041095,2]
[394371308,1763502642535,-300.0,0.00041095,2]
[394371309,1763502642545,-300.0,0.00041095,2]
[394371312,1763502642554,-500.0,0.00041095,2]
[394371314,1763502642563,-154.65,0.00041096,2]
[394371315,1763502642571,-150.0,0.00041096,30]
[394371316,1763502642580,-6370.97,0.000411,30]
[394371317,1763502642589,-386.19263862,0.000411,2]
[394371318,1763502642599,-300.0,0.00041109,2]
[394371319,1763502642608,-150.0,0.00041111,14]
[394371320,1763502642617,-300.0,0.00041118,2]
[394371321,1763502642626,-150.0,0.00041123,30]
[394371322,1763502642635,-1000.0,0.0004113,14]
[394371323,1763502642645,-1000.0,0.00041141,14]
[394371324,1763502642654,-200.0,0.00041151,30]
[394371325,1763502642663,-500.0,0.00041157,30]
[394371326,1763502642672,-1000.0,0.00041183,14]
[394371327,1763502642682,-1000.0,0.00041187,14]
[394371328,1763502642690,-1000.0,0.00041194,14]
[394371329,1763502642699,-1000.0,0.00041197,14]
[394371330,1763502642708,-300.0,0.000412,2]
[394371331,1763502642717,-212.36800079,0.00041205,30]
[394371332,1763502642727,-212.36800079,0.00041205,30]
[394371333,1763502642736,-1000.0,0.00041244,14]
[394371334,1763502642745,-282.86113,0.00041245,2]
[394371335,1763502642755,-9281.75277282,0.00041285,90]
[394371336,1763502642765,-300.0,0.00041291,2]
[394371337,1763502642774,-150.0,0.00041296,14]
[394371338,1763502642783,-1000.0,0.00041297,14]
[394371339,1763502642793,-150.0,0.00041329,14]
[394371340,1763502642802,-1000.0,0.0004133,14]
[394371341,1763502642811,-1000.0,0.00041364,14]
[394371342,1763502642821,-500.0,0.00041369,2]
[394371343,1763502642831,-500.0,0.00041369,2]
[394371344,1763502642840,-500.0,0.00041369,2]
[394371345,1763502642850,-2391.68,0.00041369,2]
[394371346,1763502642859,-500.0,0.00041369,2]
[394371347,1763502642869,-500.0,0.00041369,2]
[394371348,1763502642878,-300.0,0.00041369,2]
[394371349,1763502642888,-300.0,0.00041369,2]
[394371350,1763502642901,-375.07952846,0.00041369,2]
[394371351,1763502642910,-212.36800079,0.0004137,30]
[394371352,1763502642920,-212.36800079,0.0004137,30]
[394371353,1763502642930,-154.53830472,0.0004138,8]
[394371354,1763502642940,-1000.0,0.0004139,14]
[394371355,1763502642948,-1000.0,0.00041398,14]
[394371356,1763502642958,-200.0,0.000414,120]
[394371357,1763502642968,-1000.0,0.00041415,14]
[394371358,1763502642977,-1039.65969228,0.0004146,14]
[394371359,1763502642986,-270.5735801,0.00041473,120]
[394371360,1763502642996,-1365323.22408414,0.0004148,10]
[394371361,1763502643005,-578.04990635,0.0004148,30]
[394371362,1763502643014,-154.5383047,0.0004148,8]
[394371363,1763502643023,-66936.80297287,0.000415,2]
[394371364,1763502643033,-2500.0,0.000415,120]
[394371366,1763502643042,-628.6953549,0.000415,2]
[394371367,1763502643052,-169.32,0.000415,30]
[394371368,1763502643061,-1031.19361616,0.000415,30]
[394371369,1763502643072,-3820.68,0.000415,14]
[394371370,1763502643081,-174.65144099,0.000415,120]
[394371371,1763502643090,-927.0,0.00041503,30]
[394371372,1763502643100,-647.47377472,0.00041521,7]
[394371373,1763502643110,-374240.5793,0.00041531,30]
[394371374,1763502643119,-220.0,0.00041532,4]
[394371375,1763502643129,-300.0,0.00041539,2]
[394371376,1763502643138,-1000.0,0.00041559,14]
[394371377,1763502643148,-242422.64003259,0.0004158,10]
[394371378,1763502643157,-154.5383047,0.0004158,8]
[394371379,1763502643167,-196.2625431,0.00041581,120]
[394371380,1763502643176,-174.72568648,0.00041583,15]
[394371381,1763502643185,-572.16733287,0.00041595,4]
[394371382,1763502643194,-185.28,0.000416,44]
[394371383,1763502643203,-150.0,0.00041616,14]
[394371384,1763502643213,-200.0,0.00041641,120]
[394371385,1763502643222,-919.59239161,0.00041641,120]
[394371386,1763502643231,-283.92391277,0.00041641,13]
[394371387,1763502643240,-1859.92670822,0.00041641,2]
[394371388,1763502643249,-187.49451504,0.00041641,2]
[394371389,1763502643258,-190.61023959,0.00041641,2]
[394371391,1763502643267,-500.0,0.00041643,2]
[394371393,1763502643277,-500.0,0.00041643,2]
[394371394,1763502643286,-500.0,0.00041643,2]
[394371395,1763502643296,-500.0,0.00041643,2]
[394371396,1763502643305,-2391.68,0.00041643,2]
[394371397,1763502643316,-500.0,0.00041643,2]
[394371398,1763502643325,-500.0,0.00041643,2]
[394371399,1763502643335,-300.0,0.00041643,2]
[394371400,1763502643345,-300.0,0.00041643,2]
[394371401,1763502643355,-300.0,0.00041647,2]
[394371402,1763502643365,-266.25718519,0.00041652,7]
[394371403,1763502643374,-14617.55130109,0.0004166,120]
[394371404,1763502643383,-178.63699393,0.00041678,120]
[394371405,1763502643393,-166.07,0.00041679,30]
[394371406,1763502643402,-696.80725581,0.00041682,30]
[394371407,1763502643411,-151.0,0.00041684,20]
[394371408,1763502643421,-1000.76122488,0.00041689,120]
[394371409,1763502643431,-854.23,0.00041689,7]
[394371410,1763502643440,-1000.0,0.00041689,14]
[394371411,1763502643449,-575.65355783,0.00041692,30]
[394371412,1763502643458,-200.0,0.00041692,7]
[394371413,1763502643468,-150.0,0.00041693,14]
[394371414,1763502643477,-1245.0,0.00041694,14]
[394371415,1763502643486,-151.0,0.00041694,14]
[394371416,1763502643496,-151.0,0.00041694,14]
[394371417,1763502643506,-1245.0,0.00041694,14]
[394371418,1763502643515,-151.0,0.00041694,14]
[394371419,1763502643524,-151.0,0.00041694,14]
[394371420,1763502643533,-1245.0,0.00041694,14]
[394371421,1763502643543,-151.0,0.00041694,14]
[394371422,1763502643552,-151.0,0.00041694,14]
[394371423,1763502643561,-1245.0,0.00041694,14]
[394371424,1763502643570,-151.0,0.00041694,14]
[394371425,1763502643579,-151.0,0.00041694,14]
[394371426,1763502643587,-151.0,0.00041694,14]
[394371427,1763502643596,-1245.0,0.00041694,14]
[394371428,1763502643606,-151.0,0.00041694,14]
[394371429,1763502643615,-151.0,0.00041694,14]
[394371430,1763502643624,-1245.0,0.00041694,14]
[394371431,1763502643774,-151.0,0.00041694,14]
[394371432,1763502643784,-151.0,0.00041694,14]
[394371433,1763502643793,-1245.0,0.00041694,14]
[394371434,1763502643803,-153.0,0.00041694,14]
[394371435,1763502643811,-151.0,0.00041694,14]
[394371436,1763502643820,-1245.0,0.00041694,14]
[394371437,1763502643830,-151.0,0.00041694,14]
[394371438,1763502643839,-153.0,0.00041694,14]
[394371439,1763502643848,-151.0,0.00041694,14]
[394371440,1763502643857,-151.0,0.00041694,14]
[394371441,1763502643866,-1245.0,0.00041694,14]
[394371442,1763502643875,-151.0,0.00041694,14]
[394371443,1763502643885,-151.0,0.00041694,14]
[394371444,1763502643896,-153.0,0.00041694,14]
[394371445,1763502643906,-1245.0,0.00041694,14]
[394371446,1763502643915,-151.0,0.00041694,14]
[394371447,1763502643924,-151.0,0.00041694,14]
[394371448,1763502643934,-1245.0,0.00041694,14]
[394371449,1763502643944,-151.0,0.00041694,14]
[394371450,1763502643953,-222.38828946,0.00041694,14]
[394371451,1763502643963,-151.0,0.00041694,14]
[394371452,1763502643974,-151.0,0.00041694,14]
[394371453,1763502643983,-1245.0,0.00041694,14]
[394371454,1763502643992,-151.0,0.00041694,14]
[394371455,1763502644001,-151.0,0.00041694,14]
[394371456,1763502644010,-829.0,0.00041694,14]
[394371457,1763502644018,-829.0,0.00041694,14]
[394371458,1763502644028,-153.0,0.00041694,14]
[394371459,1763502644036,-901.6027639,0.00041694,14]
[394371460,1763502644045,-500.0,0.00041694,30]
[394371461,1763502644054,-200.0,0.00041695,7]
[394371462,1763502644064,-500.0,0.00041696,30]
[394371463,1763502644075,-459.02,0.00041697,30]
[394371464,1763502644084,-150.0,0.00041699,30]
[394371465,1763502644093,-302.33,0.00041699,30]
[394371466,1763502644103,-6370.97,0.000417,30]
[394371467,1763502644112,-216.0,0.000417,30]
[394371468,1763502644121,-175.17,0.000417,60]
[394371469,1763502644130,-150.0,0.000417,2]
[394371470,1763502644139,-150.0,0.000417,2]
[394371471,1763502644149,-192.57698377,0.000417,2]
[394371472,1763502644158,-18126.7372319,0.00041741,30]
[394371473,1763502644167,-18126.7372319,0.00041741,30]
[394371474,1763502644176,-18126.7372319,0.00041741,30]
[394371475,1763502644186,-18126.7372319,0.00041741,30]
[394371476,1763502644195,-1448405.29468706,0.00041741,7]
[394371477,1763502644315,-625.21960734,0.0003045,2]
[394371478,1763502644325,-92.65066393,0.00033546,2]
[394371479,1763502644336,-1098.34933607,0.00033546,2]
[394371480,1763502644345,-748.94772529,0.00036546,2]
[394371481,1763502644364,-150.0,0.00033546,2]
[394371482,1763502644373,-442.05227471,0.00036546,2]
[394371483,1763502644382,-1701.18249716,0.00041641,2]
[394371484,1763502644392,-2063046.95196966,0.00041741,7]
[394371485,1763502644403,-273.1490109,0.00041741,7]
[394371486,1763502644437,-150.0,0.00036546,2]
[394371487,1763502644446,-1191.0,0.00039546,2]
[394371488,1763502644456,-45077.56,0.00041741,7]
[394371489,1763502644467,-6107.83664397,0.00041741,7]
[394371490,1763502644478,-6822.802368,0.00041741,7]
[394371491,1763502644496,-177.39,0.00037589,2]
[394371492,1763502644506,-104.91485742,0.00041741,7]
[394371493,1763502645433,-1000.0,0.00041741,7]
[394371713,1763503199871,220.0,0.00015204,2]
[394371714,1763503258977,250.0,0.00017,2]
[394371751,1763503831628,-505.6086,0.00029262,2]
[394371756,1763503831645,-695.71847385,0.00029262,2]
[394371759,1763503831654,-190.2664123,0.00029262,2]
[394371762,1763503831664,-210.14696638,0.00029362,2]
[394371764,1763503831673,-300.0,0.00029412,119]
[394371766,1763503831682,-500.0,0.00029512,2]
[394371768,1763503831692,-418.929716,0.00030287,119]
[394371769,1763503831701,-1000.0,0.00030801,2]
[394371771,1763503831711,-311.71343333,0.00032188,2]
[394371772,1763503831721,-250.0,0.00032243,2]
[394371773,1763503831730,-152.61827093,0.00032265,66]
[394371774,1763503831740,-23.37642929,0.00032298,119]
[394371775,1763503831752,-276.62357071,0.00032298,119]
[394371776,1763503831762,-250.0,0.00032298,2]
[394371777,1763503831772,-300.0,0.00032298,119]
[394371778,1763503831781,-290.05642929,0.00032398,3]
[394371779,1763503831792,-940.94357071,0.00032398,3]
[394371780,1763503831802,-1.50756929,0.00032399,3]
[394371781,1763503831814,-302.61183806,0.00032399,3]
[394371782,1763503831826,-544.88059265,0.00032399,3]
[394371783,1763503831839,-400.0,0.00032399,3]
[394371784,1763503831849,-218.75634692,0.00032399,2]
[394371785,1763503831862,-181.24365308,0.00032399,2]
[394371786,1763503831872,-3592.57704692,0.000324,2]
[394371787,1763503831883,-362.32547054,0.000324,2]
[394371788,1763503831895,-943.79183188,0.000324,2]
[394371789,1763503831906,-1659.3532698,0.000324,2]
[394371790,1763503831918,-657.54238086,0.000324,2]
[394371791,1763503831927,-299.99,0.000324,30]
[394371792,1763503831938,-64.05651187,0.000324,2]
[394371793,1763503831962,-86.93348813,0.000324,2]
[394371794,1763503831973,-432.55947807,0.000324,5]
[394371795,1763503831983,-324.11537617,0.000324,5]
[394371796,1763503831993,-1003.02,0.00033242,2]
[394371797,1763503832003,-32.51165763,0.00033767,5]
[394371799,1763503832014,-468.8415485,0.00033767,5]
[394371801,1763503832024,-500.0,0.00034274,2]
[394371802,1763503832033,-575.0,0.00034592,2]
[394371803,1763503832047,-2000.0,0.000348,2]
[394371804,1763503832056,-470.763,0.000348,40]
[394371805,1763503832065,-560.0,0.00034833,2]
[394371806,1763503832075,-11085.89067428,0.00035,2]
[394371807,1763503832085,-225.82,0.00035129,2]
[394371808,1763503832095,-275414.18246898,0.00036477,2]
[394371809,1763503832106,-76083.29813336,0.00036477,2]
[394371810,1763503832118,-326174.31948985,0.00036477,2]
[394371811,1763503832129,-82328.19990781,0.00036477,2]
[394371812,1763503832139,-250.0,0.00036561,2]
[394371813,1763503832148,-35486.2,0.00036577,2]
[394371814,1763503832158,-200.0,0.00037289,2]
[394371815,1763503832167,-999.0,0.00037443,3]
[394371816,1763503832176,-200.0,0.00037587,2]
[394371817,1763503832186,-168.0,0.00037611,7]
[394371818,1763503832195,-168.0,0.00037651,120]
[394371819,1763503832205,-309.0,0.00037794,30]
[394371820,1763503832217,-168.0,0.00037809,7]
[394371821,1763503832231,-1000.0,0.00037875,2]
[394371822,1763503832246,-536.07571619,0.00037928,30]
[394371823,1763503832257,-168.0,0.00037941,7]
[394371824,1763503832269,-168.0,0.00038244,2]
[394371825,1763503832278,-168.0,0.0003834,7]
[394371826,1763503832287,-1343.0,0.000385,2]
[394371827,1763503832299,-168.0,0.00038507,2]
[394371828,1763503832308,-168.0,0.00038922,7]
[394371829,1763503832318,-168.0,0.00039717,2]
[394371830,1763503832328,-168.0,0.00039725,2]
[394371831,1763503832337,-168.0,0.00039742,2]
[394371832,1763503832347,-168.0,0.00039745,2]
[394371833,1763503832356,-168.0,0.00039764,2]
[394371834,1763503832366,-168.0,0.00039793,7]
[394371835,1763503832376,-168.0,0.00039872,2]
[394371836,1763503832385,-168.0,0.00039954,7]
[394371837,1763503832395,-1000.0,0.0004,2]
[394371838,1763503832404,-168.0,0.00040001,2]
[394371839,1763503832414,-500.0,0.00040117,30]
[394371840,1763503832424,-2000.0,0.0004036,120]
[394371841,1763503832434,-822.94323152,0.0004042,30]
[394371842,1763503832446,-794.4398055,0.00040449,2]
[394371843,1763503832457,-152.0,0.00040496,3]
[394371844,1763503832466,-168.0,0.00040574,2]
[394371845,1763503832476,-7201.78927868,0.00040854,15]
[394371846,1763503832486,-283.92391277,0.00040858,13]
[394371847,1763503832496,-3259.2069,0.00040868,120]
[394371848,1763503832505,-4303.37718066,0.00040868,15]
[394371849,1763503832514,-202.15959693,0.00040869,16]
[394371850,1763503832524,-168.0,0.00040894,2]
[394371851,1763503832534,-1708.0,0.000409,7]
[394371852,1763503832543,-500.0,0.00040931,2]
[394371853,1763503832553,-500.0,0.00040931,31]
[394371854,1763503832562,-500.0,0.00040931,2]
[394371855,1763503832572,-500.0,0.00040931,7]
[394371856,1763503832581,-500.65233627,0.00040931,31]
[394371857,1763503832591,-500.0,0.00040931,7]
[394371858,1763503832600,-500.0,0.00040931,31]
[394371859,1763503832609,-702.68307315,0.00040931,31]
[394371860,1763503832619,-500.0,0.00040931,2]
[394371861,1763503832629,-500.0,0.00040931,2]
[394371862,1763503832638,-702.68307315,0.00040931,31]
[394371863,1763503832648,-196.94135343,0.00040931,31]
[394371864,1763503832657,-500.0,0.00040931,31]
[394371865,1763503832667,-500.0,0.00040931,7]
[394371866,1763503832677,-500.0,0.00040931,7]
[394371867,1763503832687,-500.0,0.00040931,2]
[394371868,1763503832697,-702.68307315,0.00040931,31]
[394371869,1763503832706,-604.51139922,0.00040931,2]
[394371870,1763503832716,-500.0,0.00040931,2]
[394371871,1763503832726,-500.0,0.00040931,31]
[394371872,1763503832735,-500.0,0.00040931,7]
[394371873,1763503832745,-425.10104693,0.00040931,7]
[394371874,1763503832755,-702.68307315,0.00040931,31]
[394371875,1763503832765,-216.11395642,0.00040931,2]
[394371876,1763503832775,-702.68307315,0.00040931,31]
[394371877,1763503832785,-364.51725105,0.00040931,31]
[394371878,1763503832794,-292.06215603,0.00040931,7]
[394371879,1763503832804,-702.68307315,0.00040931,31]
[394371880,1763503832813,-702.68307315,0.00040931,31]
[394371881,1763503832835,-500.0,0.00040931,2]
[394371882,1763503832845,-702.68307315,0.00040931,31]
[394371883,1763503832855,-702.68307315,0.00040931,31]
[394371884,1763503832865,-500.0,0.00040931,2]
[394371885,1763503832875,-702.68307315,0.00040931,31]
[394371886,1763503832885,-702.68307315,0.00040931,31]
[394371887,1763503832895,-500.0,0.00040931,2]
[394371888,1763503832905,-702.68307315,0.00040931,31]
[394371889,1763503832915,-702.68307315,0.00040931,31]
[394371890,1763503832925,-702.68307315,0.00040931,31]
[394371891,1763503832937,-702.68307315,0.00040931,31]
[394371892,1763503832946,-702.68307315,0.00040931,31]
[394371893,1763503832956,-702.68307315,0.00040931,31]
[394371894,1763503832966,-702.68307315,0.00040931,31]
[394371895,1763503832975,-702.68307315,0.00040931,31]
[394371896,1763503832986,-702.68307315,0.00040931,31]
[394371897,1763503832995,-702.68307315,0.00040931,31]
[394371898,1763503833005,-702.68307315,0.00040931,31]
[394371899,1763503833015,-702.68307315,0.00040931,31]
[394371900,1763503833026,-702.68307315,0.00040931,31]
[394371901,1763503833253,-702.68307315,0.00040931,31]
[394371902,1763503833265,-702.68307315,0.00040931,31]
[394371903,1763503833276,-702.68307315,0.00040931,31]
[394371904,1763503833286,-702.68307315,0.00040931,31]
[394371905,1763503833296,-702.68307315,0.00040931,31]
[394371906,1763503833307,-702.68307315,0.00040931,31]
[394371907,1763503833318,-702.68307315,0.00040931,31]
[394371908,1763503833328,-702.68307315,0.00040931,31]
[394371909,1763503833338,-702.68307315,0.00040931,31]
[394371910,1763503833348,-702.68307315,0.00040931,31]
[394371911,1763503833357,-702.68307315,0.00040931,31]
[394371912,1763503833367,-702.68307315,0.00040931,31]
[394371913,1763503833378,-702.68307315,0.00040931,31]
[394371914,1763503833388,-702.68307315,0.00040931,31]
[394371915,1763503833398,-702.68307315,0.00040931,31]
[394371916,1763503833408,-702.68307315,0.00040931,31]
[394371917,1763503833418,-702.68307315,0.00040931,31]
[394371918,1763503833427,-702.68307315,0.00040931,31]
[394371919,1763503833437,-702.68307315,0.00040931,31]
[394371920,1763503833446,-635.34091582,0.00040931,31]
[394371921,1763503833459,-67.34215733,0.00040931,31]
[394371922,1763503833468,-678.24951784,0.00040931,31]
[394371923,1763503833480,-24.43355531,0.00040931,31]
[394371924,1763503833489,-702.68307315,0.00040931,31]
[394371925,1763503833498,-369.0018548,0.00040931,31]
[394371937,1763503837570,-198.84908615,0.00036476,15]
[394371938,1763503837581,-458.24438748,0.00036476,15]
[394371939,1763503837593,-41.75561252,0.00036476,15]
[394371940,1763503837602,-316.53504306,0.00036476,15]
[394371941,1763503837613,-83.18839067,0.00036476,15]
[394371942,1763503837623,-150.0,0.00040932,2]
[394371943,1763503837632,-150.0,0.00040932,2]
[394371944,1763503837641,-150.0,0.00040932,2]
[394371945,1763503837656,-170.53149372,0.00040932,2]
[394371946,1763503837668,-6.85850628,0.00040932,2]
[394371947,1763503837677,-177.39,0.00040932,2]
[394371948,1763503837687,-177.39,0.00040932,2]
[394371949,1763503837696,-177.39,0.00040932,2]
[394371950,1763503837706,-356.49298762,0.00040932,2]
[394371951,1763503837722,-60.37701238,0.00040932,2]
[394371952,1763503837732,-177.39,0.00040932,2]
[394371953,1763503837742,-416.87,0.00040932,2]
[394371955,1763503837752,-34.68666949,0.00040932,2]
[394371956,1763503837764,-382.18333051,0.00040932,2]
[394371957,1763503837773,-223.31813035,0.00040932,2]
[394371958,1763503837785,-193.55186965,0.00040932,2]
[394371959,1763503837795,-177.39,0.00040932,2]
[394371960,1763503837805,-416.87,0.00040932,2]
[394371962,1763503837816,-167.84,0.00040932,2]
[394371964,1763503837825,-302.33,0.00040932,2]
[394371966,1763503837835,-150.0,0.00040932,2]
[394371968,1763503837845,-604.51645535,0.00040941,15]
[394371970,1763503837857,-6597.27282326,0.00040941,15]
[394371972,1763503837867,-55604.5698549,0.00040948,4]
[394371974,1763503837876,-53612.2452375,0.00040948,4]
[394371977,1763503837886,-215.82459157,0.00040948,7]
[394371980,1763503837895,-150.42,0.00040948,2]
[394371983,1763503837905,-4303.37718058,0.00040953,15]
[394371986,1763503837914,-500.0,0.00040957,7]
[394371989,1763503837924,-375285.716662,0.00040958,4]
[394371992,1763503837934,-1906.0,0.00040968,5]
[394371996,1763503837943,-590.65516718,0.00040973,5]
[394371999,1763503837953,-500.0,0.00040973,5]
[394372002,1763503837963,-500.0,0.00040973,5]
[394372005,1763503837972,-501.67772144,0.00040973,5]
[394372008,1763503837982,-295.91820015,0.00040973,5]
[394372010,1763503837991,-507.2530192,0.00040973,5]
[394372012,1763503838000,-168.0,0.00040989,2]
[394372014,1763503838010,-7201.78927861,0.00041028,15]
[394372016,1763503838023,-4303.37718058,0.00041038,15]
[394372019,1763503838033,-168.0,0.00041059,2]
[394372021,1763503838043,-25000.0,0.00041068,14]
[394372023,1763503838052,-907.0,0.00041079,30]
[394372025,1763503838062,-500.0,0.00041095,2]
[394372027,1763503838071,-500.0,0.00041095,2]
[394372029,1763503838081,-500.0,0.00041095,2]
[394372031,1763503838092,-2391.68,0.00041095,2]
[394372033,1763503838101,-300.0,0.00041095,2]
[394372035,1763503838111,-500.0,0.00041095,2]
[394372037,1763503838121,-500.0,0.00041095,2]
[394372039,1763503838131,-300.0,0.00041095,2]
[394372041,1763503838141,-500.0,0.00041095,2]
[394372044,1763503838155,-500.0,0.00041096,30]
[394372046,1763503838165,-536.35263676,0.000411,2]
[394372048,1763503838176,-7201.78927861,0.00041114,15]
[394372050,1763503838185,-500.0,0.00041123,30]
[394372052,1763503838195,-4303.37718058,0.00041124,15]
[394372054,1763503838205,-500.0,0.00041151,30]
[394372056,1763503838219,-200.0,0.00041151,30]
[394372058,1763503838232,-500.0,0.00041178,30]
[394372060,1763503838241,-7201.78927861,0.00041201,15]
[394372063,1763503838251,-500.0,0.00041206,30]
[394372064,1763503838262,-307.51752004,0.00041233,30]
[394372065,1763503838274,-7201.78927861,0.00041288,15]
[394372067,1763503838284,-342.3476119,0.00041302,28]
[394372069,1763503838294,-150.0,0.00041318,2]
[394372071,1763503838307,-150.0,0.00041318,2]
[394372072,1763503838317,-192.57698377,0.00041318,2]
[394372073,1763503838326,-500.0,0.00041369,2]
[394372074,1763503838337,-500.0,0.00041369,2]
[394372075,1763503838347,-2391.68,0.00041369,2]
[394372076,1763503838357,-300.0,0.00041369,2]
[394372077,1763503838367,-500.0,0.00041369,2]
[394372078,1763503838377,-500.0,0.00041369,2]
[394372079,1763503838386,-300.0,0.00041369,2]
[394372080,1763503838395,-375.07952846,0.00041369,2]
[394372081,1763503838405,-7201.78927861,0.00041375,15]
[394372082,1763503838417,-342.3476119,0.00041413,28]
[394372083,1763503838427,-165.86732143,0.00041432,15]
[394372084,1763503838437,-190.72244429,0.00041432,3]
[394372085,1763503838447,-402.76843416,0.00041433,120]
[394372086,1763503838457,-200.0,0.0004146,120]
[394372087,1763503838467,-7201.78927861,0.00041461,15]
[394372088,1763503838478,-270.5735801,0.00041473,120]
[394372089,1763503838489,-1000.0,0.00041481,14]
[394372090,1763503838498,-907.0,0.00041503,30]
[394372091,1763503838508,-150.42,0.00041515,2]
[394372092,1763503838518,-500.0,0.00041521,10]
[394372093,1763503838527,-495.07079462,0.00041521,10]
[394372094,1763503838537,-342.3476119,0.00041524,28]
[394372095,1763503838547,-374240.5793,0.00041525,30]
[394372096,1763503838557,-1000.0,0.00041526,14]
[394372097,1763503838567,-1000.0,0.00041533,14]
[394372098,1763503838577,-402.76843415,0.00041534,120]
[394372099,1763503838587,-190.72244429,0.00041537,3]
[394372100,1763503838597,-300.0,0.00041537,2]
[394372101,1763503838607,-150.0,0.00041539,14]
[394372102,1763503838620,-1000.0,0.00041539,14]
[394372103,1763503838630,-300.0,0.00041543,2]
[394372104,1763503838640,-7201.78927861,0.00041548,15]
[394372105,1763503838650,-1000.0,0.00041552,14]
[394372106,1763503838659,-1000.0,0.00041558,14]
[394372107,1763503838669,-300.0,0.00041566,2]
[394372108,1763503838679,-150.0,0.00041568,14]
[394372109,1763503838688,-1039.65969228,0.00041571,14]
[394372110,1763503838698,-1000.0,0.00041576,14]
[394372111,1763503838707,-150.0,0.00041578,14]
[394372112,1763503838717,-1000.0,0.00041584,14]
[394372113,1763503838726,-300.0,0.00041597,2]
[394372114,1763503838736,-1000.0,0.00041625,14]
[394372115,1763503838745,-402.76843415,0.00041635,120]
[394372116,1763503838755,-7201.78927861,0.00041635,15]
[394372117,1763503838765,-342.3476119,0.00041635,28]
[394372118,1763503838775,-409.02620207,0.00041635,2]
[394372119,1763503838784,-241.94834121,0.00041635,2]
[394372120,1763503838793,-1859.92670822,0.00041635,2]
[394372121,1763503838803,-10000.0,0.00041641,2]
[394372122,1763503838815,-190.72244429,0.00041641,4]
[394372123,1763503838825,-500.0,0.00041643,2]
[394372124,1763503838835,-500.0,0.00041643,2]
[394372125,1763503838845,-2391.68,0.00041643,2]
[394372126,1763503838854,-500.0,0.00041643,2]